Cogmind - Beta 14 @@@ ROGUE MODE // 2024.08.18 @ 07:38:30 Player: Lillith Result: Destroyed by Y-45 Defender with Beam Rifle Performance ------------- Evolutions (1) 500 Regions Visited (3) 600 Robots Destroyed (50) 250 Value Destroyed (1180) 1180 Prototype IDs (1) 20 Alien Tech Used (0) 0 Bonus (0) 0 TOTAL SCORE: 2550 Bonus ------- None Cogmind --------- Core Integrity 0/400 Matter 242/300 Energy 280/280 System Corruption 7% Temperature Cool (88) Movement Treading (160) Location -9/Materials Parts ------- > --- POWER (1) -------- Cooled Ion Engine > --- PROPULSION (2) --- Light Treads Light Treads > --- UTILITY (2) ------ Large Storage Unit Medium Armor Plating > --- WEAPON (4) ------- Particle Gun > --- INVENTORY (15) --- Cooled Ion Engine Light Treads Large Storage Unit Huge Storage Unit Large Matter Pod (150) Seismic Detector Light Armor Plating Medium Armor Plating Hacking Suite Rocket Launcher Mining Claw Blade Trap Blade Trap Blade Trap Peak State ------------ > --- POWER ------------ Cooled Ion Engine > --- PROPULSION ------- Light Treads Wheel > --- UTILITY ---------- Large Storage Unit Light Armor Plating > --- WEAPON ----------- Small Laser Beam Rifle Light Assault Rifle Light Assault Rifle > --- INVENTORY -------- Cooled Ion Engine Light Treads Light Treads Light Treads Light Treads Huge Storage Unit Large Matter Pod Seismic Detector Light Armor Plating Hacking Suite Rocket Launcher Mining Claw Blade Trap Blade Trap Blade Trap [Rating: 14] Favorites ----------- Power Ion Engine Engine Ion Engine Power Core Light Nuclear Core Propulsion Light Treads Treads Light Treads Wheel Wheel Utility Large Storage Unit Device Terrain Scanner Storage Large Storage Unit Protection Light Armor Plating Weapon Light Assault Rifle Energy Gun Medium Laser Energy Cannon Beam Cannon Ballistic Gun Light Assault Rifle Launcher Rocket Launcher Build | -11 -10 -10 -9 ------- Run | Yrd Mat Min Mat Slots Evolved 2 | . . . 2 Power . | . . . . Propulsion . | . . . . Utility . | . . . . Weapon 2 | . . . 2 Parts Attached 57 | 8 24 3 22 Power 7 | 1 4 . 2 Engine 6 | 1 3 . 2 Core 1 | . 1 . . Reactor . | . . . . Propulsion 18 | 2 9 . 7 Treads 13 | 2 5 . 6 Leg . | . . . . Wheel 5 | . 4 . 1 Hover . | . . . . Flight . | . . . . Utility 14 | 2 6 1 5 Device 4 | 1 2 1 . Storage 5 | 1 3 . 1 Processor . | . . . . Hackware . | . . . . Protection 5 | . 1 . 4 Artifact . | . . . . Weapon 18 | 3 5 2 8 Energy Gun 7 | 2 . . 5 Energy Cannon 3 | . 3 . . Ballistic Gun 6 | 1 2 1 2 Ballistic Cannon . | . . . . Launcher 2 | . . 1 1 Special Weapon . | . . . . Impact Weapon . | . . . . Slashing Weapon . | . . . . Piercing Weapon . | . . . . Special Melee Weapon . | . . . . Unidentified Prototypes 1 | . . . 1 Parts Lost 17 | . 7 . 10 Power 1 | . 1 . . Propulsion 5 | . 3 . 2 Utility 3 | . 2 . 1 Weapon 8 | . 1 . 7 Highest Loss Streak 7 | . 2 . 7 To Critical Strikes . | . . . . Average Slot Usage (%) 94 | . 94 100 87 Engine 12 | . 13 14 11 Treads 13 | . 13 14 13 Wheel 12 | . 13 14 7 Device 8 | . 8 14 . Storage 13 | . 13 14 11 Protection 4 | . 4 . 9 Energy Gun 6 | . 6 . 13 Energy Cannon 6 | . 14 . . Ballistic Gun 14 | . 3 27 17 Peak Build Rating 14 | 7 10 9 14 Average Rating 8 | 5 7 8 11 On Entrance 5 | . 7 8 8 Naked Turns . | . . . . Heaviest Build 94 | 13 94 31 38 Greatest Support 40 | 40 40 20 40 Greatest Overweight (x) 30 | . 30 2 3 Average Overweight (x) 2 | . 5 1 1 Largest Inventory Capacity 25 | 8 25 15 15 Average Capacity 16 | 7 18 15 15 Most Carried 15 | 4 15 15 15 Average Carried 12 | 2 9 14 14 Final Capacity 15 | 8 15 15 15 Final Carried 15 | 4 15 15 14 Class Distribution -------------------- 51% | Mutant 31% | Scavenger-Mutant 10% | Scavenger-Tank 4% | Tank Dominant Class ---------------- Mutant | -10/Materials Scavenger-Mutant | -10/Mines Scavenger-Tank | -9/Materials Resources | -11 -10 -10 -9 ----------- Run | Yrd Mat Min Mat Matter Collected 1288 | 227 567 130 364 Remotely . | . . . . Salvage Created 1475 | 15 747 27 686 Parts 115 | 2 48 6 59 Haulers Intercepted 3 | . 2 . 1 Recyclers Shooed 3 | 1 . . 2 Parts Field Recycled . | . . . . Retrieved Matter . | . . . . Parts Self-Destructed . | . . . . Prevented . | . . . . Kills | -11 -10 -10 -9 ------- Run | Yrd Mat Min Mat Combat Hostiles Destroyed 37 | . 20 2 15 Guns 22 | . 11 . 11 Cannons 9 | . 9 . . AOE 6 | . . 2 4 Classes Destroyed 11 | 1 5 . 5 Builder 2 | . . . 2 Tunneler 2 | 1 . 1 . Hauler 3 | . 2 . 1 Recycler 1 | . . . 1 Operator 1 | . . . 1 Watcher 4 | . 1 . 3 Swarmer 14 | . 6 2 6 Grunt 17 | . 13 . 4 Duelist 1 | . . . 1 Sentry 4 | . . . 4 Subdweller 1 | . 1 . . Best Kill Streak 5 | 1 3 2 5 Combat Bots Only 4 | . 3 2 4 Max Kills in Single Turn 1 | 1 1 1 1 Gunslinging . | . . . . Exploded 1 | . . 1 1 Melee . | . . . . Uniques/NPCs Destroyed . | . . . . Combat | -11 -10 -10 -9 -------- Run | Yrd Mat Min Mat Hostile Shots Fired 270 | . 120 7 143 Missed 81 | . 36 3 42 Damage Taken 2616 | . 967 82 1567 Core 569 | . 148 9 412 Absorbed by Shields . | . . . . Core Remaining (%) 68 | 100 . 37 . Volleys Fired 154 | 4 80 6 64 Largest 4 | 2 2 2 4 Hottest 136 | 100 120 40 136 Shots Fired 345 | 8 150 10 177 Gun 282 | 8 95 7 172 Cannon 55 | . 55 . . Launcher 8 | . . 3 5 Special . | . . . . Kinetic 142 | . 33 7 102 Thermal 195 | 8 117 . 70 Explosive 8 | . . 3 5 Electromagnetic . | . . . . Robot Hit Streak 15 | 7 15 7 11 Robot Miss Streak 5 | 1 3 1 5 Penetration Max . | . . . . Secondary Targets 3 | . . . 3 Max Gunslinging Chain 1 | . . . 1 Shots Hit Robots 211 | 7 94 7 103 Core Hits 85 | 2 39 3 41 Critical Kills . | . . . . Critical Parts Destroyed 1 | . 1 . . Critical Strikes 9 | 1 5 . 3 Burn 8 | 1 4 . 3 Destroy 1 | . 1 . . Melee Attacks . | . . . . Impact . | . . . . Slashing . | . . . . Piercing . | . . . . Sneak Attacks . | . . . . Combat Hostiles . | . . . . Follow-up Attacks . | . . . . Damage Inflicted 3104 | 89 1281 239 1495 Guns 1911 | 89 686 35 1101 Cannons 592 | . 592 . . Explosions 598 | . . 204 394 Melee . | . . . . Ramming 3 | . 3 . . Kinetic 624 | . 145 35 444 Thermal 1914 | 89 1133 . 692 Explosive 563 | . . 204 359 Electromagnetic . | . . . . Impact . | . . . . Slashing . | . . . . Piercing . | . . . . Highest Corruption 7 | . 2 2 7 Average Corruption 1 | . 1 2 3 Corruption Purged . | . . . . Corruption Blocked . | . . . . Effects 38 | . 20 15 3 Message Errors 6 | . 3 3 . Matter Fused 11 | . 6 3 2 Heat Flow Errors 5 | . 2 3 . Energy Discharges 7 | . 5 1 1 Parts Rejected 1 | . 1 . . Data Loss (minor) 5 | . 2 3 . Misfires 1 | . . 1 . Alerts 1 | . . 1 . Weapon Failures 1 | . 1 . . Overload Shots . | . . . . Overflow Damage 36 | . . 21 15 Projectiles . | . . . . Explosions 36 | . . 21 15 Melee . | . . . . Knockbacks . | . . . . Impact . | . . . . Kinetic . | . . . . Secondary . | . . . . Self-Inflicted Damage 132 | . . . 132 Shots 2 | . . . 2 Rammed 1 | . 1 . . Targets Rammed 1 | . 1 . . Kicked . | . . . . Crushed . | . . . . Highest Temperature 680 | 100 647 239 680 Average Temperature 156 | 51 155 108 172 Received Heat Transfer 597 | . 378 . 219 Effects 45 | . 22 1 22 Shutdowns 6 | . 2 . 4 Energy Bleed 7 | . 3 1 3 Interference 4 | . 1 . 3 Matter Decay 4 | . 2 . 2 Short Circuit 2 | . 2 . . Damage (minor) 1 | . . . 1 Damage (major) 18 | . 12 . 6 Damage (core) 3 | . . . 3 Siege Activations . | . . . . Robots Corrupted . | . . . . Combat Hostiles . | . . . . Parts Fried . | . . . . Impact Corruptions . | . . . . Robots Melted . | . . . . Combat Hostiles . | . . . . Parts Melted 13 | 2 7 . 4 Heat Transferred 5302 | 333 3145 . 1824 Parts Sabotaged . | . . . . Parts Stolen . | . . . . Parts Stripped . | . . . . Power Chain Reactions . | . . . . Alert | -11 -10 -10 -9 ------- Run | Yrd Mat Min Mat Peak Influence 347 | 5 226 91 347 Initial 52 | . 3 52 1 Average 72 | 1 47 15 196 Maximum Alert Level 1 | . 1 . 1 Low Security (%) 87 | 100 96 100 54 Level 1 12 | . 3 . 45 Level 2 . | . . . . Level 3 . | . . . . Level 4 . | . . . . Level 5 . | . . . . High Security . | . . . . Max Security . | . . . . Squads Dispatched 6 | . 3 . 3 Investigation 2 | . 2 . . Extermination . | . . . . Reinforcement 4 | . 1 . 3 Assault . | . . . . Garrison . | . . . . Intercept . | . . . . Searches Triggered . | . . . . Construction Impeded 1 | . . . 1 Haulers Reinforced . | . . . . Active Scanning Responses . | . . . . Cargo Convoy Interrupts . | . . . . Stealth | -11 -10 -10 -9 --------- Run | Yrd Mat Min Mat Distress Signals 7 | . 1 1 5 Communications Jammed . | . . . . Distress Signals . | . . . . Times Spotted 65 | . 34 4 27 Peak Tracking Total 5 | . 4 3 5 Tactical Retreats 5 | . 3 . 2 Traps | -11 -10 -10 -9 ------- Run | Yrd Mat Min Mat Traps Triggered 7 | . 3 . 4 Indirectly . | . . . . Trap Hack Attempts . | . . . . Triggered . | . . . . Disarmed . | . . . . Reprogrammed . | . . . . Reused . | . . . . Traps Extracted . | . . . . Installed . | . . . . Triggered . | . . . . Most Traps Carried 3 | . . 3 3 Machines | -11 -10 -10 -9 ---------- Run | Yrd Mat Min Mat Machines Disabled 4 | . 1 1 2 Max in Single Turn 2 | . 1 1 2 Machines Repaired . | . . . . Machines Dismantled . | . . . . Machines Sabotaged . | . . . . Overloaded Fab Kills . | . . . . Hacking | -11 -10 -10 -9 --------- Run | Yrd Mat Min Mat Machines Accessed 10 | . 7 . 3 Terminals 8 | . 5 . 3 Fabricators . | . . . . Repair Stations . | . . . . Recycling Units 2 | . 2 . . Scanalyzers . | . . . . Garrison Access . | . . . . Total Hacks 27 | . 16 . 11 Successful 11 | . 7 . 4 Failed 16 | . 9 . 7 Catastrophic 1 | . 1 . . Database Lockouts . | . . . . Manual 26 | . 15 . 11 Terminals 25 | . 14 . 11 Fabricators . | . . . . Repair Stations . | . . . . Recycling Units 2 | . 2 . . Scanalyzers . | . . . . Garrison Access . | . . . . Terminal Hacks . | . . . . Fabricator Hacks . | . . . . Repair Station Hacks . | . . . . Recycling Unit Hacks 1 | . 1 . . Retrieve Components 1 | . 1 . . Scanalyzer . | . . . . Garrison Access Hacks . | . . . . Unauthorized Hacks 10 | . 6 . 4 Terminals 9 | . 5 . 4 Botnet 1 | . . . 1 Skim 8 | . 5 . 3 Fabricators . | . . . . Repair Stations . | . . . . Recycling Units 1 | . 1 . . Tunnel 1 | . 1 . . Scanalyzers . | . . . . Garrison Access . | . . . . Data Cores Recovered . | . . . . Used . | . . . . Hacking Detections 6 | . 4 . 2 Full Trace Events . | . . . . Feedback Events . | . . . . Feedback Blocked . | . . . . Robot Schematics Acquired . | . . . . Robots Built . | . . . . Authchips . | . . . . Time . | . . . . Total Robot Build Rating . | . . . . Part Schematics Acquired . | . . . . Parts Built . | . . . . Authchips . | . . . . Time . | . . . . Total Part Build Rating . | . . . . Parts Repaired . | . . . . Time . | . . . . Parts Recycled . | . . . . Recycled Matter . | . . . . Retrieved Matter . | . . . . Retrieved Components 1 | . 1 . . Parts Scanalyzed . | . . . . Part Schematics Acquired . | . . . . Parts Damaged . | . . . . Bothacking | -11 -10 -10 -9 ------------ Run | Yrd Mat Min Mat Used RIF Installer . | . . . . Robots Hacked . | . . . . Non-combat . | . . . . Combat . | . . . . Robot Hacks Applied . | . . . . Relay Couplers Released . | . . . . Fabnet Peak Effective % . | . . . . Robots Rewired . | . . . . Allies Hacked . | . . . . Hacks Repelled . | . . . . Allies | -11 -10 -10 -9 -------- Run | Yrd Mat Min Mat Total Allies . | . . . . Largest Group . | . . . . Highest-Rated Group . | . . . . Highest-Rated Ally . | . . . . Total Orders . | . . . . Ally Attacks . | . . . . Total Damage . | . . . . Kills . | . . . . Allies Corrupted . | . . . . Allies Melted . | . . . . Intel | -11 -10 -10 -9 ------- Run | Yrd Mat Min Mat Robot Analysis Total . | . . . . Derelict Logs Recovered 1 | . . 1 . Drone Launches . | . . . . Drone Recoveries . | . . . . Exploration | -11 -10 -10 -9 ------------- Run | Yrd Mat Min Mat Turns Passed 4975 | 121 2149 1520 1185 Spaces Moved 2214 | 62 913 676 563 Core 26 | 4 22 . . Treads 1051 | 58 267 407 319 Legs . | . . . . Wheels 1137 | . 624 269 244 Hover . | . . . . Flight . | . . . . Fastest Speed 50 | 50 95 110 110 Average Speed 187 | 152 200 188 169 Slowest Speed 1550 | 160 1550 240 240 Overloaded Moves . | . . . . Propulsion Burnouts . | . . . . Robots Hopped . | . . . . Cave-ins Triggered . | . . . . Exploration Rate (%) 59 | 4 94 97 41 Regions Visited 3 Branch Regions 1 Pre-discovered Areas 2 | . 1 1 . Known Exits Taken 1 | . . 1 . Unknown Exits Taken 2 | 1 1 . . Scrap Searched 3 | . . 3 . Spaces Dug 10 | . . 10 . Terrain Destroyed 85 | . . 33 52 Melee . | . . . . Projectile . | . . . . AOE 85 | . . 33 52 Terrain Rammed . | . . . . Walls Destroyed . | . . . . Machines Disabled . | . . . . Actions | -11 -10 -10 -9 --------- Run | Yrd Mat Min Mat Total 2778 | 77 1091 917 693 Wait 282 | . 39 220 23 Move 2211 | 61 912 675 563 Hop . | . . . . Pick Up 36 | 3 20 6 7 Fast Attach 21 | 8 6 1 6 Attach 15 | . 9 . 6 Detach 7 | 1 5 . 1 Swap 21 | . 9 2 10 Drop 30 | . 10 7 13 Fire 154 | 4 80 6 64 Melee . | . . . . Ram . | . . . . Kick . | . . . . Crush 1 | . 1 . . Escape Stasis . | . . . . Rewire . | . . . . Trap . | . . . . Miscellaneous . | . . . . Route ------- -11/Scrapyard -10/Materials (discovered 5 exits: *Mat x3 / [*Min x2]) -10/Mines (discovered 3 exits: *Mat x2 / [*Sub]) -9/Materials (discovered 3 exits: *Mat x2 / [*Min]) History --------- Turn | Location | Event 35 | -11/Scrapyard | Discovered new exit (range 15) 122 | -11/Scrapyard | Entered Materials 302 | -10/Materials | Build established: Mutant 325 | -10/Materials | Discovered new exit (range 10) 1359 | -10/Materials | Discovered new exit (range 4) 1417 | -10/Materials | Discovered new exit (range 6) 1422 | -10/Materials | Derelicts attacked the area 1888 | -10/Materials | Discovered new exit (range 4) 1927 | -10/Materials | Discovered new exit (range 16) 1949 | -10/Materials | Core integrity fell below 50% 2256 | -10/Materials | Loaded intel: 1 repair station location 2271 | -10/Materials | Entered Mines 2272 | -10/Mines | Identified exit to Materials 2344 | -10/Mines | Assembled infested the area 2349 | -10/Mines | Assisted by a Guerilla fighting off Assembled 2518 | -10/Mines | Build established: Scavenger-Mutant 2762 | -10/Mines | Found a hidden stash of uninstalled traps 2971 | -10/Mines | Received a Rocket Launcher from a helpful Derelict 3517 | -10/Mines | Discovered new exit (range 10) 3791 | -10/Mines | Entered Materials 3791 | -9/Materials | Evolved 2 slots: Weapon x2 3792 | -9/Materials | Identified exit to Materials 3984 | -9/Materials | Discovered new exit (range 12) 4176 | -9/Materials | Build established: Scavenger-Tank 4659 | -9/Materials | Core integrity fell below 50% 4682 | -9/Materials | Core integrity fell below 20% 4685 | -9/Materials | Lost 7 parts (1n1u5w) 4804 | -9/Materials | Discovered exit to Materials (range 14) 4938 | -9/Materials | Build established: Mutant 4976 | -9/Materials | Destroyed by Y-45 Defender with Beam Rifle Last Messages --------------- Terminal linked with 1 system. Please expand to 3 more systems! 04911_ K-01 Serf collects debris. 04930_ Triggered Shock Trap. 04930_ The floor emits a surge of raw power. 04930_ System corrupted (+2). 04933_ Triggered Shock Trap. 04933_ The floor emits a surge of raw power. 04933_ System corrupted (+2). 04934_ Triggered Shock Trap. 04934_ The floor emits a surge of raw power. 04934_ System corrupted (+1). 04946_ Connecting with Terminal... >>Trojan(Skim) Trojan loaded successfully. Testing... Terminal linked with 2 systems. Please expand to 2 more systems! 04948_ System corrupted: Energy discharge (-70). 04963_ System corrupted: Matter fused (-9). Map ----- +----------------------------------------------------+ | | | | | | | | | | | | | | | | | | | ?????????????????????????????????????????????????? | | ?????????????????????????????????????????????????? | | ?????????????????????????????????????????????????? | | ?????????????????????????????????????????????????? | | ?????????????????????????????????????????????????? | | ?????????????????????????????????????????????????? | | ?????????????????????????????????????????????????? | | ?????????????????????????????????????????????????? | | ?????????????????????????????????????????????????? | | ?????????????????????????????????????????????????? | | ?????????????????????????????????????????????????? | | ?????????????????????????????????????????????????# | | ?????????????????????????????????????????????????# | | ?????????????????????????????????????????????????# | | ????????????????????????????????######???????????# | | ?????????????????????####### #???????????# | | ???????????########### @ Y +???????????# | | ???????????# = # ##### ##???????????????# | | ???????????# # #????????#????????????????? | | ???????????# + #?????????????????????????? | | ???????????# "T" # #?????????????????????????? | | ???????????########### #?????????????????????????? | | ???????????######## ^ #?????????????????????????? | | ???????????# T # #?????????????????????????? | | ???????????# # #????????????????????????## | | ???????????# !! *+ ^ #????????????????????????# | | ???????????# !! # #????????????????????????# | | ???????????# !!! # #????????????????????????# | | ???????????# # #????????????????????????# | | ???????????#### ### ##+####?????????????????????# | | ??????????????###?# ## #?????????????????????# | | ??????????????????# ## #?????????????????????# | | ??????????????????# ## #?????????????????????# | | ??????????????????# ## #?????????????????????# | | ????????????#######+## #????????###########??## | | ????????????# # #????????# ##### | | ????????????# """ # #????????# # | | ????????????# """"" # #????????# # | | ????????????# """"" # #????????# + | | ????????????# """"" ######????????# ! ! """ # | | ????????????# """ #?????????????# !! """ # | +----------------------------------------------------+ Best States ------------- Heat Dissipation 39 Energy Generation 14 Energy Capacity 280 Matter Stores 300 Matter Capacity 300 Sight Range 16 Terrain Scan Range 14 Terrain Scan Density 10 Armor Coverage 225 Evasion (%) 41 Recoil Reduction 2 Item Schematics ----------------- None Robot Schematics ------------------ None Fabricated ------------ Nothing Alien Tech Used ----------------- None Achievements -------------- None Challenges ------------ None Game ------ Seed MinesnifferIonicShield Manual? 0 Play Time 00:24:56 Cumulative 36.7 hours Start 2024.08.18 @ 07:14:23 End 2024.08.18 @ 07:38:30 Sessions 1 Manual Loads 0 Difficulty Rogue Special Mode None Game No. 62 Rogue 62 Adventurer 0 Explorer 0 Win Type - Total 0 Types 0/0/0/0/0/0/0/0/0 Lore% 35 Gallery% 30 Achievement% 28 Wizard Run 0 Options --------- Layout 2 ASCII 0 Keyboard 1 Movement Arrows Keybinds 0 Fullscreen 2 Font 32/SmallcapsGlow Map View 50x44 Zoom Use 0% Tactical HUD 1 Map Filters NONE Filters NONE Steam 1 RUN: 0eed827c-33ab-411f-b7e7-7e53fe7ec126